bitfinex-derivatives/quotes_SOLF0:USTF0_20250309
["timestamp","ask_amount","ask_price","bid_price","bid_amount"]
[1741540801585,40.68,127.85,127.79,7.8262]
[1741540801789,40.68,127.85,127.76,40.68]
[1741540802387,0.0518219,127.82,127.79,0.05747533]
[1741540802690,0.0518219,127.82,127.81,7.8255]
[1741540803391,0.0518219,127.82,127.79,0.05747533]
[1741540803593,0.0518219,127.82,127.8,7.8261]
[1741540803991,55.83261948,127.88,127.79,0.05747533]
[1741540804188,55.83261948,127.88,127.77,258.2]
[1741540804393,51.61511948,127.86,127.77,258.2]
[1741540804685,40.66,127.85,127.8,7.8257]
[1741540805088,4.2175,127.88,127.81,0.05361746]
[1741540805089,96.49261948,127.88,127.81,0.05361746]
[1741540805283,0.05096373,127.84,127.81,0.05361746]
[1741540805482,7.8198,127.91,127.81,51.66873694]
[1741540805686,96.31991948,127.92,127.85,7.823]
[1741540805988,192.0,127.93,127.84,40.66]
[1741540806389,51.61511948,127.94,127.84,40.66]
[1741540806589,51.61511948,127.94,127.89,7.8206]
[1741540806590,0.05971262,127.9,127.89,7.8206]
[1741540806790,59.43291948,127.94,127.84,40.66]
[1741540806791,7.8178,127.94,127.84,40.66]
[1741540807391,40.66,127.95,127.84,40.66]
[1741540807694,51.61511948,127.94,127.84,40.66]
[1741540807894,0.0574943,127.91,127.88,0.05360997]
[1741540808190,51.61511948,127.9,127.88,0.05360997]
[1741540809098,40.6974943,127.91,127.88,0.05360997]
[1741540809399,0.0574943,127.91,127.88,0.05360997]
[1741540809588,51.61511948,127.9,127.88,0.05360997]
[1741540809794,7.8206,127.89,127.88,0.05360997]
[1741540810094,0.0574943,127.91,127.88,0.05360997]
[1741540810794,7.8206,127.89,127.88,0.05360997]
[1741540811195,7.8229,127.86,127.82,16.0022]
[1741540811401,51.61511948,127.87,127.78,40.64]
[1741540811601,44.5626,127.9,127.78,40.64]
[1741540811602,51.61511948,127.85,127.78,48.875]
[1741540811906,7.8251,127.82,127.78,56.7019]
[1741540812105,51.61511948,127.83,127.78,4.0014]
[1741540812402,7.8268,127.79,127.75,7.8291]
[1741540812898,0.0544575,127.78,127.76,0.04932952]
[1741540813299,92.23511948,127.85,127.76,0.04932952]
[1741540813492,40.62,127.85,127.77,40.62]
[1741540813696,51.61511948,127.87,127.77,40.62]
[1741540814503,0.05118669,127.83,127.81,0.05935644]
[1741540814899,51.61511948,127.87,127.81,0.05935644]
[1741540814900,40.62,127.89,127.81,44.59935644]
[1741540815101,40.62,127.93,127.82,59.92591948]
[1741540815602,7.817,127.95,127.84,51.61511948]
[1741540815801,55.57661948,127.96,127.85,40.62]
[1741540816104,0.05394813,127.91,127.88,0.04977019]
[1741540816400,51.61511948,127.98,127.89,40.62]
[1741540816598,51.61511948,127.98,127.9,8.5502]
[1741540816905,51.61511948,127.96,127.89,40.62]
[1741540817106,59.43271948,127.94,127.87,258.2]
[1741540817293,51.61511948,127.98,127.87,258.2]
[1741540817498,0.05781535,127.92,127.89,0.0593174]
[1741540817696,7.8159,127.97,127.89,0.0593174]
[1741540817901,51.61511948,127.98,127.87,258.2]
[1741540818102,51.61511948,127.96,127.88,40.62]
[1741540818401,51.61511948,127.96,127.93,7.8181]
[1741540818594,51.61511948,127.98,127.88,40.62]
[1741540818794,51.67150024,127.96,127.93,0.05591378]
[1741540818999,92.27150024,127.96,127.93,0.05591378]
[1741540819198,51.61511948,127.94,127.93,0.05591378]
[1741540819503,51.61511948,127.94,127.85,48.4229]
[1741540819699,51.61511948,127.91,127.85,7.8229]
[1741540819894,51.61511948,127.91,127.83,8.5502]
[1741540820804,0.05537975,127.88,127.86,0.05223492]
[1741540822400,51.61511948,127.93,127.86,0.05223492]
[1741540823195,51.61511948,127.98,127.86,40.63223492]
[1741540823400,7.8163,127.96,127.92,7.8184]
[1741540823602,0.05306859,127.93,127.92,7.8184]
[1741540823904,7.8159,127.97,127.87,51.61511948]
[1741540824304,51.61511948,127.98,127.87,51.61511948]
[1741540824503,7.8158,127.97,127.93,7.8178]
[1741540824900,0.052356,127.96,127.94,0.05226389]
[1741540825207,92.19511948,127.95,127.86,40.58]
[1741540825707,92.19511948,127.95,127.83,49.1302]
[1741540825708,51.61511948,127.93,127.83,49.1302]
[1741540826205,7.8188,127.92,127.88,7.8207]
[1741540826508,0.05779847,127.91,127.89,0.05608112]
[1741540826706,51.67291795,127.91,127.84,7.8233]
[1741540826896,51.61511948,127.89,127.84,7.8233]
[1741540827100,51.61511948,127.87,127.83,4.2635]
[1741540827303,7.8228,127.86,127.85,0.05920784]
[1741540827502,0.05051327,127.86,127.85,0.05920784]
[1741540828909,7.87291327,127.86,127.85,0.05920784]
[1741540829105,59.48803275,127.86,127.85,0.05920784]
[1741540829503,7.8247,127.83,127.79,15.7852]
[1741540830305,51.61511948,127.86,127.79,7.9589]
[1741540830606,0.05332163,127.84,127.81,0.05572737]
[1741540830804,67.88929298,127.92,127.81,0.05572737]
[1741540830805,92.17511948,127.9,127.81,0.05572737]
[1741540831008,51.61511948,127.85,127.79,7.9589]
[1741540831311,7.8246,127.83,127.79,3.8809]
[1741540831909,7.8238,127.84,127.8,7.8258]
[1741540832106,0.04974402,127.82,127.8,0.05937264]
[1741540832305,0.04974402,127.82,127.8,7.88507264]
[1741540832901,0.04974402,127.82,127.8,0.05937264]
[1741540835714,0.04974402,127.82,127.81,7.8255]
[1741540837110,0.04974402,127.82,127.8,0.05937264]
[1741540837619,0.04974402,127.82,127.81,7.8255]
[1741540838321,0.04974402,127.82,127.8,7.88517264]
[1741540838915,0.04974402,127.82,127.8,0.05937264]
[1741540839522,7.8255,127.81,127.8,0.05937264]
[1741540839718,59.44061948,127.81,127.8,0.05937264]
[1741540839921,51.61511948,127.81,127.71,158.32364332]
[1741540840120,51.61511948,127.81,127.73,4.2648]
[1741540840316,72.30764079,127.82,127.73,4.2648]
[1741540840516,72.30764079,127.82,127.77,7.8278]
[1741540840820,72.30764079,127.82,127.73,4.2648]
[1741540841011,7.8266,127.8,127.76,7.8281]
[1741540841214,7.8266,127.8,127.78,0.05460748]
[1741540841418,72.30764079,127.82,127.73,4.2648]
[1741540841619,72.30764079,127.82,127.78,0.05709689]
[1741540841816,0.05570917,127.79,127.78,0.05709689]
[1741540842216,7.88240917,127.79,127.78,0.05709689]
[1741540842618,0.05570917,127.79,127.78,0.05709689]
[1741540844721,7.88240917,127.79,127.78,0.05709689]
[1741540845423,7.88240917,127.79,127.65,175.02362234]
[1741540845424,40.59570917,127.79,127.65,175.02362234]
[1741540845715,40.59570917,127.79,127.67,4.2476]
[1741540845716,31.76764079,127.73,127.67,4.2476]
[1741540845920,7.8326,127.7,127.66,46.92845187]
[1741540846121,31.76764079,127.71,127.67,10.6909702]
[1741540846421,7.88839731,127.7,127.68,0.05233057]
[1741540846623,0.05609731,127.7,127.68,0.05233057]
[1741540847023,7.8328,127.69,127.68,0.05233057]
[1741540847222,7.8328,127.69,127.67,10.6909702]
[1741540847824,72.3437381,127.7,127.67,10.6909702]
[1741540848019,7.8334,127.68,127.67,10.6909702]
[1741540848221,31.76764079,127.68,127.66,117.78364332]
[1741540848416,31.76764079,127.68,127.65,151.50137258]
[1741540848626,31.76764079,127.66,127.64,256.44931123]
[1741540848824,40.54,127.65,127.64,88.22557496]
[1741540849022,40.54,127.65,127.63,243.41681858]
[1741540849219,31.76764079,127.64,127.63,219.70961858]
[1741540849423,31.76764079,127.64,127.55,7.9732]
[1741540849424,39.60394079,127.64,127.55,40.35922065]
[1741540849624,31.76764079,127.64,127.55,40.35922065]
[1741540849923,0.0601404,127.61,127.58,0.05192028]
[1741540850728,0.0601404,127.61,127.59,7.8385]
[1741540850928,0.0601404,127.61,127.58,0.05192028]
[1741540851826,51.76475486,127.6,127.58,0.05192028]
[1741540852222,7.839,127.59,127.58,0.05192028]
[1741540852624,3.92,127.59,127.5,4.1375]
[1741540852824,40.56,127.6,127.5,55.90225486]
[1741540853028,40.56,127.6,127.55,7.8413]
[1741540853227,10.72071532,127.61,127.54,51.76475486]
[1741540853528,10.72071532,127.61,127.56,51.76475486]
[1741540853733,3.842e-05,127.59,127.58,51.76475486]
[1741540854025,4.02856435,127.62,127.61,7.8377]
[1741540854425,4.02856435,127.62,127.58,51.76475486]
[1741540854730,4.02856435,127.62,127.61,7.8377]
[1741540854927,85.52776165,127.65,127.57,40.56]
[1741540855227,0.06004059,127.63,127.6,0.05564006]
[1741540857328,0.06004059,127.63,127.54,92.30475486]
[1741540857538,51.76475486,127.65,127.54,92.30475486]
[1741540857733,182.06021651,127.67,127.56,51.76475486]
[1741540857931,26.65587801,127.64,127.56,51.76475486]
[1741540858232,26.65587801,127.64,127.56,4.91106118]
[1741540858632,0.05823866,127.61,127.59,0.05611353]
[1741540858829,0.05823866,127.61,127.6,7.8384]
[1741540859832,0.05823866,127.61,127.57,2.65479134]
[1741540860233,0.05823866,127.61,127.54,51.76475486]
[1741540860427,0.05823866,127.61,127.58,7.8395]
[1741540860633,0.05823866,127.61,127.54,51.76475486]
[1741540860828,48.3771,127.63,127.58,7.8395]
[1741540861134,40.54,127.63,127.56,51.76475486]
[1741540861428,26.65587801,127.64,127.63,7.8365]
[1741540861834,133.90196165,127.67,127.63,7.8361]
[1741540862031,126.06776165,127.67,127.58,51.76475486]
[1741540862332,85.52776165,127.67,127.62,51.76475486]
[1741540862537,73.73932788,127.67,127.62,92.30475486]
[1741540862925,73.73932788,127.67,127.61,258.696866]
[1741540863528,128.95322161,127.71,127.64,51.76475486]
[1741540863732,128.95322161,127.71,127.66,51.76475486]
[1741540863938,128.95322161,127.71,127.7,7.8322]
[1741540864131,195.72843808,127.72,127.7,92.30475486]
[1741540864335,156.57113808,127.72,127.7,92.30475486]
[1741540864630,131.33383808,127.72,127.71,7.8316]
[1741540865138,271.32928881,127.73,127.71,7.8316]
[1741540865139,271.38441972,127.73,127.71,3.92]
[1741540865337,323.3036906,127.74,127.72,51.76475486]
[1741540865536,311.64833597,127.74,127.72,51.76475486]
[1741540865836,311.64833597,127.74,127.72,55.68475486]
[1741540866237,31.72114138,127.81,127.75,7.8291]
[1741540866431,31.72114138,127.81,127.75,40.52]
[1741540866626,31.72114138,127.81,127.76,7.8279]
[1741540866831,0.04972633,127.79,127.77,0.05219903]
[1741540867237,7.8273,127.78,127.77,0.05219903]
[1741540867437,0.04972633,127.79,127.77,0.05219903]
[1741540868339,0.04972633,127.79,127.78,301.51235712]
[1741540870434,0.04972633,127.79,127.78,247.39475456]
[1741540870833,7.87642633,127.79,127.78,247.39475456]
[1741540871736,7.87642633,127.79,127.78,108.89635456]
[1741540872132,7.87642633,127.79,127.78,108.23520512]
[1741540872546,7.8298,127.74,127.73,139.15954944]
[1741540872729,51.76475486,127.76,127.73,139.15954944]
[1741540873039,7.8292,127.75,127.73,139.15954944]
[1741540873237,51.76475486,127.76,127.73,139.15954944]
[1741540873739,51.81691142,127.76,127.73,139.2194051]
[1741540875040,51.76475486,127.74,127.73,139.2194051]
[1741540875237,51.76475486,127.74,127.7,161.16465611]
[1741540875436,51.76475486,127.72,127.7,161.16465611]
[1741540875634,51.76475486,127.74,127.7,161.16465611]
[1741540875937,51.76475486,127.74,127.69,4.0788]
[1741540876143,51.76475486,127.76,127.69,4.0788]
[1741540876642,0.04994593,127.74,127.71,0.05234516]
[1741540877240,51.81470079,127.74,127.71,0.05234516]
[1741540877447,51.76475486,127.72,127.71,0.05234516]
[1741540877641,59.59575486,127.72,127.71,0.05234516]
[1741540877943,59.59575486,127.72,127.71,4.516e-05]
[1741540878140,7.8341,127.67,127.65,8.2888]
[1741540878341,31.8316357,127.69,127.65,4.2143]
[1741540878539,72.2916357,127.69,127.63,4.1684]
[1741540878842,7.8357,127.65,127.61,8.3732]
[1741540879033,31.8316357,127.67,127.61,4.2143]
[1741540879237,0.054277,127.64,127.62,0.05817243]
[1741540880141,31.8316357,127.71,127.62,44.43817243]
[1741540880338,40.46,127.72,127.62,40.46]
[1741540880546,31.8316357,127.71,127.62,40.46]
[1741540880842,31.8316357,127.69,127.61,4.2143]
[1741540881031,7.8336,127.68,127.61,4.2143]
[1741540881233,0.05689103,127.66,127.64,0.05156938]
[1741540882741,0.05689103,127.66,127.64,7.88706938]
[1741540882942,31.8316357,127.73,127.64,7.88706938]
[1741540882943,31.8316357,127.73,127.64,0.05156938]
[1741540883139,40.46,127.72,127.68,7.8331]
[1741540883344,7.8306,127.73,127.65,4.1419]
[1741540883539,72.2916357,127.75,127.65,4.1419]
[1741540883743,72.2916357,127.75,127.67,7.8337]
[1741540884040,72.2916357,127.75,127.65,4.1419]
[1741540884243,0.05719514,127.72,127.7,0.05749677]
[1741540885139,0.05719514,127.72,127.7,7.88949677]
[1741540885338,0.05719514,127.72,127.7,0.05749677]
[1741540886848,7.8316,127.71,127.7,0.05749677]
[1741540887247,0.05719514,127.72,127.7,0.05749677]
[1741540888150,7.8316,127.71,127.7,0.05749677]
[1741540888544,0.05719514,127.72,127.7,0.05749677]
[1741540888744,7.8316,127.71,127.7,0.05749677]
[1741540889048,51.72654098,127.72,127.61,4.2143]
[1741540889245,51.66934584,127.7,127.61,4.2143]
[1741540889440,51.66934584,127.68,127.61,4.2143]
[1741540889648,7.8366,127.63,127.61,4.2143]
[1741540889846,40.44,127.65,127.58,4.0332]
[1741540890043,192.0,127.72,127.61,0.04935838]
[1741540890044,0.05893316,127.63,127.61,0.04935838]
[1741540890243,0.05893316,127.63,127.62,7.8371]
[1741540890448,51.66934584,127.68,127.58,4.0332]
[1741540890748,0.05057832,127.64,127.61,0.05631255]
[1741540891850,7.88677832,127.64,127.61,0.05631255]
[1741540892056,0.05057832,127.64,127.61,0.05631255]
[1741540892953,0.05057832,127.64,127.61,7.89361255]
[1741540893150,0.05057832,127.64,127.61,0.05631255]
[1741540893552,0.05057832,127.64,127.62,7.8371]
[1741540894050,40.42,127.68,127.61,0.05631255]
[1741540894259,92.08934584,127.72,127.62,51.66934584]
[1741540894555,7.8325,127.7,127.62,51.66934584]
[1741540894750,92.08934584,127.72,127.62,51.66934584]
[1741540895147,40.42,127.73,127.62,51.66934584]
[1741540895349,0.05784337,127.68,127.66,0.05513983]
[1741540895556,40.42,127.73,127.66,0.05513983]
[1741540895756,51.66934584,127.7,127.66,0.05513983]
[1741540896751,7.8341,127.67,127.66,0.05513983]
[1741540897152,0.0497937,127.69,127.66,0.05513983]
[1741540897355,7.8341,127.67,127.66,0.05513983]
[1741540898057,7.8341,127.67,127.66,3.983e-05]
[1741540898658,7.8375,127.62,127.54,51.66934584]
[1741540898858,7.8375,127.62,127.58,7.8392]
[1741540899055,40.42,127.64,127.54,92.08934584]
[1741540899353,48.2563,127.64,127.55,4.0428]
[1741540899655,7.8383,127.61,127.55,4.0428]
[1741540899848,0.05747608,127.61,127.58,0.05160613]
[1741540900452,40.42,127.6,127.58,0.05160613]
[1741540901162,51.66934584,127.59,127.51,4.223]
[1741540901658,7.8398,127.58,127.53,7.8423]
[1741540901851,51.66934584,127.59,127.51,4.223]
[1741540902055,40.42,127.6,127.51,55.89234584]
[1741540902257,7.8376,127.62,127.57,7.84]
[1741540902449,92.08934584,127.63,127.54,0.05198758]
[1741540902450,0.05252784,127.57,127.54,0.05198758]
[1741540902660,92.08934584,127.63,127.54,3.889]
[1741540902850,92.08934584,127.63,127.54,3.93842886]
[1741540903055,0.05314713,127.6,127.57,0.04982399]
[1741540903556,92.06934584,127.59,127.51,4.223]
[1741540904260,7.8416,127.55,127.51,12.0664]
[1741540904463,31.89037873,127.57,127.49,8.4449]
[1741540904755,7.8427,127.53,127.52,0.0511457]
[1741540905261,0.05691323,127.54,127.52,0.0511457]
[1741540905858,7.89951323,127.54,127.52,0.0511457]
[1741540906161,0.05691323,127.54,127.52,0.0511457]
[1741540906662,63.78075746,127.53,127.35,309.66387848]
[1741540906857,31.89037873,127.46,127.38,3.9153]
[1741540907060,31.89037873,127.44,127.38,3.9153]
[1741540907261,41.7,127.47,127.38,3.9153]
[1741540907560,7.8481,127.45,127.37,7.8522]
[1741540907864,0.05554317,127.44,127.41,0.0528919]
[1741540909459,51.90479377,127.42,127.41,9.19e-05]
[1741540909665,22.0,127.41,127.32,85.47544199]
[1741540909962,51.90479377,127.4,127.32,85.47544199]
[1741540910168,51.90479377,127.4,127.3,4.0466]
[1741540910352,7.853,127.37,127.3,11.9032]
[1741540910755,0.0527932,127.35,127.32,0.05773067]
[1741540912064,0.0527932,127.35,127.33,7.8548]
[1741540912265,58.96,127.46,127.32,55.88252444]
[1741540912462,58.96,127.46,127.32,51.96252444]
[1741540912659,58.96,127.46,127.29,8.3586]
[1741540912660,51.90479377,127.37,127.29,8.3586]
[1741540912965,51.90479377,127.32,127.24,258.86]
[1741540913159,51.90479377,127.32,127.25,7.8599]
[1741540913360,51.90479377,127.32,127.22,8.314]
[1741540913559,0.0527549,127.29,127.27,0.05133677]
[1741540913855,7.8581,127.28,127.27,0.05133677]
[1741540914056,51.95754867,127.29,127.2,32.18843649]
[1741540914364,59.76409377,127.26,127.2,32.18843649]
[1741540914662,59.76409377,127.26,127.18,7.8637]
[1741540914663,51.90479377,127.26,127.18,7.8637]
[1741540914865,51.90479377,127.26,127.16,4.2344]
[1741540915062,51.90479377,127.23,127.16,4.2344]
[1741540915262,0.05590746,127.22,127.2,0.05131694]
[1741540916068,0.05590746,127.22,127.12,258.86]
[1741540916265,51.96070123,127.22,127.12,258.86]
[1741540916466,51.90479377,127.22,127.12,258.86]
[1741540917066,51.90479377,127.26,127.13,112.00479377]
[1741540917273,56.10629377,127.29,127.16,51.92739788]
[1741540917466,252.12,127.31,127.17,12.3491]
[1741540917674,60.12,127.31,127.22,7.8612]
[1741540917876,60.02,127.36,127.21,259.04]
[1741540918080,51.90479377,127.33,127.22,51.90479377]
[1741540918275,51.90479377,127.33,127.21,259.04]
[1741540918276,51.90479377,127.38,127.25,51.90479377]
[1741540918586,0.05254519,127.33,127.3,0.05158418]
[1741540918779,0.05254519,127.33,127.31,7.8562]
[1741540918980,51.90479377,127.41,127.29,259.1]
[1741540919289,42.82398813,127.42,127.31,51.96089822]
[1741540919488,0.05716523,127.36,127.31,51.90479377]
[1741540919676,42.82398813,127.42,127.37,7.8519]
[1741540919881,42.82398813,127.42,127.35,0.05433087]
[1741540920083,42.82398813,127.42,127.31,51.90479377]
[1741540920388,42.82398813,127.42,127.34,51.90479377]
[1741540920585,42.82398813,127.42,127.35,8.0592]
[1741540920787,51.90479377,127.44,127.35,8.0592]
[1741540920985,0.05170241,127.4,127.37,0.05534226]
[1741540921188,51.90479377,127.47,127.37,0.05534226]
[1741540921383,51.90479377,127.47,127.4,7.8501]
[1741540921588,60.26,127.49,127.38,51.90479377]
[1741540921886,51.90479377,127.46,127.39,7.8512]
[1741540922183,4.2993,127.54,127.39,7.8512]
[1741540922184,51.90479377,127.53,127.43,51.90479377]
[1741540922388,51.90479377,127.55,127.44,64.312]
[1741540922783,60.18,127.59,127.44,64.312]
[1741540922784,0.05133475,127.49,127.44,64.312]
[1741540922979,51.90479377,127.55,127.48,0.05700106]
[1741540923185,51.90479377,127.57,127.45,310.98479377]
[1741540923593,7.8397,127.58,127.48,7.8451]
[1741540923892,51.90479377,127.59,127.49,111.98479377]
[1741540924091,42.82398813,127.6,127.53,7.8425]
[1741540924389,0.05662006,127.55,127.53,0.05201244]
[1741540924589,42.82398813,127.6,127.53,0.05201244]
[1741540924787,51.90479377,127.57,127.53,0.05201244]
[1741540925084,0.05183845,127.55,127.53,0.05201244]
[1741540925891,51.95663222,127.55,127.53,0.05201244]
[1741540926584,0.05183845,127.55,127.53,0.05201244]
[1741540927289,51.90479377,127.54,127.46,4.0214]
[1741540927684,59.74,127.53,127.46,4.0214]
[1741540927993,59.74559377,127.57,127.46,11.8678]
[1741540928291,51.90479377,127.55,127.47,4.1817]
[1741540928488,0.05117074,127.53,127.5,0.05973376]
[1741540929990,59.5,127.63,127.5,3.97973376]
[1741540930289,59.5,127.63,127.5,59.5]
[1741540930491,192.2238,127.66,127.52,51.90479377]
[1741540930492,51.90479377,127.65,127.52,51.90479377]
[1741540930793,51.90479377,127.65,127.53,263.1172]
[1741540930995,251.38,127.66,127.53,263.1172]
[1741540931193,51.90479377,127.64,127.54,3.9348]
[1741540931493,51.90479377,127.68,127.58,0.05347922]
[1741540931792,0.2217,127.7,127.58,0.05347922]
[1741540931793,111.32649377,127.7,127.58,51.90479377]
[1741540931987,51.90479377,127.67,127.58,51.90479377]
[1741540932189,51.90479377,127.67,127.56,51.90479377]
[1741540932393,51.90479377,127.69,127.58,51.90479377]
[1741540932688,7.8336,127.68,127.59,7.8384]
[1741540932890,0.05648738,127.65,127.62,0.05176447]
[1741540933094,51.90479377,127.72,127.62,0.05176447]
[1741540933288,7.8305,127.73,127.64,7.8353]
[1741540933597,42.82398813,127.74,127.63,51.90479377]
[1741540934394,0.0566859,127.7,127.67,0.05666312]
[1741540935098,243.90479377,127.8,127.67,0.05666312]
[1741540935392,7.8284,127.77,127.65,110.54479377]
[1741540935598,51.90479377,127.8,127.67,51.90479377]
[1741540935796,51.90479377,127.8,127.69,51.90479377]
[1741540935990,51.90479377,127.8,127.7,321.4614]
[1741540936387,0.05131915,127.76,127.74,0.05232866]
[1741540937791,250.24,127.85,127.74,3.97232866]
[1741540937991,58.24,127.85,127.74,0.05232866]
[1741540938199,385.44444787,127.86,127.73,51.90479377]
[1741540938402,51.90479377,127.88,127.77,51.90479377]
[1741540938700,51.90479377,127.88,127.77,109.96479377]
[1741540939102,51.90479377,127.88,127.81,0.06013761]
[1741540939103,0.05278529,127.84,127.81,0.06013761]
[1741540940199,51.90479377,127.83,127.81,0.06013761]
[1741540940700,0.05278529,127.84,127.81,0.06013761]
[1741540941099,0.05278529,127.84,127.73,4.1447]
[1741540941100,51.90479377,127.83,127.73,4.1447]
[1741540941300,7.8281,127.77,127.73,4.1447]
[1741540941492,51.90479377,127.81,127.73,4.1447]
[1741540941698,51.90479377,127.77,127.71,4.0576]
[1741540942095,51.90479377,127.79,127.71,4.0576]
[1741540942399,0.0552974,127.75,127.73,0.05437923]
[1741540942797,57.72,127.8,127.73,0.05437923]
[1741540942994,0.059906,127.75,127.73,0.05437923]
[1741540943205,7.829,127.76,127.73,0.05437923]
[1741540943405,57.72,127.8,127.73,0.05437923]
[1741540943704,51.90479377,127.77,127.73,0.05437923]
[1741540944300,7.8298,127.74,127.73,0.05437923]
[1741540944694,51.90479377,127.79,127.73,0.05437923]
[1741540944900,0.05003487,127.75,127.73,0.05437923]
[1741540948813,4.0537,127.85,127.73,112.919173]
[1741540948814,57.04,127.85,127.73,112.919173]
[1741540949010,57.04,127.85,127.74,7.0822]
[1741540949312,51.90479377,127.84,127.74,7.0822]
[1741540949609,51.90479377,127.84,127.74,58.98699377]
[1741540949805,7.8247,127.83,127.79,7.8267]
[1741540950015,0.052148,127.8,127.79,7.8267]
[1741540950204,0.052148,127.8,127.78,0.0586268]
[1741540950404,7.8247,127.83,127.78,0.0586268]
[1741540950405,7.8239,127.84,127.78,0.0586268]
[1741540950805,51.90479377,127.87,127.78,0.0586268]
[1741540951205,51.90479377,127.85,127.74,58.98699377]
[1741540951611,0.05231564,127.81,127.78,0.05183923]
[1741540951803,51.95710941,127.81,127.78,0.05183923]
[1741540952003,7.8267,127.79,127.78,0.05183923]
[1741540952706,51.95710941,127.81,127.7,258.76]
[1741540952909,51.90479377,127.79,127.71,7.8315]
[1741540953114,7.8298,127.74,127.7,258.76]
[1741540953314,51.90479377,127.77,127.7,258.76]
[1741540953810,7.8308,127.73,127.72,0.05606043]
[1741540954407,7.8299,127.74,127.72,0.05606043]
[1741540954610,0.05629066,127.75,127.72,0.05606043]
[1741540955117,51.96108443,127.75,127.64,321.7263]
[1741540955414,51.90479377,127.73,127.64,321.7263]
[1741540955714,51.90479377,127.73,127.66,7.8346]
[1741540956315,51.90479377,127.71,127.68,0.0527434]
[1741540956511,51.96192336,127.71,127.68,0.0527434]
[1741540957216,0.05712959,127.71,127.68,0.0527434]
[1741540958315,0.05712959,127.71,127.68,7.8857434]
[1741540958510,0.05712959,127.71,127.68,0.0527434]
[1741540958918,0.05712959,127.71,127.68,7.8859434]
[1741540959111,0.05712959,127.71,127.68,0.0527434]
[1741540960711,107.08479377,127.8,127.72,7.8306]
[1741540960911,107.08479377,127.8,127.69,3.4923]
[1741540961112,7.829,127.76,127.71,7.8312]
[1741540961420,7.829,127.76,127.69,3.4923]
[1741540961615,107.00479377,127.8,127.69,3.4923]
[1741540961820,0.04945119,127.74,127.71,0.05534996]
[1741540962116,51.90479377,127.77,127.69,3.4923]
[1741540962313,0.05742602,127.74,127.71,0.05708559]
[1741540962514,51.96221979,127.74,127.71,0.05708559]
[1741540962915,0.05742602,127.74,127.71,0.05708559]
[1741540963119,0.05742602,127.74,127.71,7.88828559]
[1741540963416,0.05742602,127.74,127.71,0.05708559]
[1741540964227,10.60650062,127.84,127.71,0.05708559]
[1741540964418,62.51129439,127.84,127.72,310.34479377]
[1741540964618,10.60650062,127.81,127.73,3.3678]
[1741540964822,10.60650062,127.81,127.78,7.8272]
[1741540965124,10.60650062,127.81,127.73,3.3678]
[1741540965623,0.05015491,127.78,127.76,0.05763595]
[1741540965826,0.05015491,127.78,127.76,7.88603595]
[1741540966126,0.05015491,127.78,127.76,0.05763595]
[1741540967534,7.8279,127.77,127.76,0.05763595]
[1741540972732,0.05015491,127.78,127.76,0.05763595]
[1741540973532,10.60650062,127.79,127.76,0.05763595]
[1741540974333,7.8277,127.78,127.76,0.05763595]
[1741540974733,7.8840855,127.78,127.76,0.05763595]
[1741540974932,7.8279,127.77,127.76,0.05763595]
[1741540976530,7.8837855,127.78,127.76,0.05763595]
[1741540977035,7.8279,127.77,127.76,0.05763595]
[1741540978240,0.0563855,127.78,127.76,0.05763595]
[1741540980440,42.82398813,127.83,127.76,107.96242972]
[1741540980642,42.82398813,127.83,127.76,104.04242972]
[1741540981339,85.91330004,127.84,127.83,7.8242]
[1741540981537,85.91330004,127.84,127.8,258.38]
[1741540982042,85.91330004,127.84,127.82,0.05953728]
[1741540983443,85.91330004,127.84,127.82,7.88403728]
[1741540983742,85.91330004,127.84,127.82,0.05953728]
[1741540984043,3.0630839,127.84,127.82,107.60433105]
[1741540984232,128.80748334,127.85,127.82,107.60433105]
[1741540984434,128.80748334,127.85,127.82,103.68433105]
[1741540984637,128.80748334,127.85,127.82,0.05953728]
[1741540985035,51.90479377,127.84,127.73,258.28]
[1741540985235,51.90479377,127.81,127.74,7.8297]
[1741540985638,51.90479377,127.81,127.73,261.9007]
[1741540985842,7.8271,127.79,127.74,7.8296]
[1741540986042,51.90479377,127.81,127.73,261.9007]
[1741540986238,0.05842809,127.78,127.75,0.05421577]
[1741540986444,7.8283,127.77,127.75,0.05421577]
[1741540986644,0.05842809,127.78,127.75,0.05421577]
[1741540986950,7.88622809,127.78,127.75,0.05421577]
[1741540987149,0.05842809,127.78,127.75,0.05421577]
[1741540988237,7.8285,127.76,127.75,0.05421577]